fUST/lending_fUST_20241119
["ID","MTS","AMOUNT","RATE_DAILY","PERIOD"]
[342511461,1731946246094,-194.277484,0.00014246,2]
[342511462,1731946246103,-500.0,0.00014246,2]
[342511464,1731946246113,-521.2,0.00014246,2]
[342511466,1731946246122,-197.59,0.00014246,2]
[342511468,1731946246131,-500.0,0.00014246,2]
[342511470,1731946246140,-500.0,0.00014246,2]
[342511472,1731946246150,-399.58288257,0.00014246,2]
[342511475,1731946246163,-100.41711743,0.00014246,2]
[342511477,1731946246172,-186.60881927,0.00014246,2]
[342511479,1731946246182,-225.98410435,0.00014246,2]
[342511481,1731946246191,-500.0,0.00014246,2]
[342511483,1731946246200,-500.0,0.00014246,2]
[342511486,1731946246210,-500.0,0.00014246,2]
[342511489,1731946246219,-500.0,0.00014246,2]
[342511491,1731946246228,-548.5007005,0.00014246,2]
[342511492,1731946246238,-500.0,0.00014246,2]
[342511494,1731946246248,-535.68190775,0.00014246,2]
[342511496,1731946246257,-500.0,0.00014246,2]
[342511498,1731946246266,-500.0,0.00014246,2]
[342511500,1731946246276,-500.0,0.00014246,2]
[342511501,1731946246285,-500.0,0.00014246,2]
[342511503,1731946246295,-500.0,0.00014246,2]
[342511505,1731946246304,-500.0,0.00014246,2]
[342511507,1731946246315,-284.73680035,0.00014246,2]
[342511509,1731946246326,-500.0,0.00014246,2]
[342511511,1731946246339,-357.22707022,0.00014246,2]
[342511512,1731946246349,-500.0,0.00014246,2]
[342511513,1731946246358,-602.52337189,0.00014246,2]
[342511514,1731946246368,-500.0,0.00014246,2]
[342511515,1731946246378,-500.0,0.00014246,2]
[342511516,1731946246387,-651.73,0.00014246,2]
[342511517,1731946246397,-2336.0,0.00014246,2]
[342511518,1731946246407,-500.0,0.00014246,2]
[342511519,1731946246416,-373.94604646,0.00014246,2]
[342511520,1731946246426,-500.0,0.00014246,2]
[342511521,1731946246435,-500.0,0.00014246,2]
[342511522,1731946246445,-500.0,0.00014246,2]
[342511523,1731946246455,-500.0,0.00014246,2]
[342511524,1731946246465,-500.0,0.00014246,2]
[342511526,1731946246475,-500.0,0.00014246,2]
[342511527,1731946246484,-500.0,0.00014246,2]
[342511528,1731946246494,-500.0,0.00014246,2]
[342511529,1731946246503,-500.0,0.00014246,2]
[342511530,1731946246512,-460.22004252,0.00014246,2]
[342511531,1731946246580,-39.77995748,0.00014246,2]
[342511532,1731946246593,-500.0,0.00014246,2]
[342511533,1731946246603,-500.0,0.00014246,2]
[342511534,1731946246613,-66.36831279,0.00014246,2]
[342511535,1731946246988,-500.0,0.00013698,2]
[342511536,1731946247000,-500.0,0.00013972,2]
[342511537,1731946247012,-433.63168721,0.00014246,2]
[342511538,1731946247024,-500.0,0.00014246,2]
[342511539,1731946247035,-500.0,0.00014246,2]
[342511540,1731946247047,-500.0,0.00014246,2]
[342511541,1731946247059,-500.0,0.00014246,2]
[342511542,1731946247071,-500.0,0.00014246,2]
[342511543,1731946247085,-500.0,0.00014246,2]
[342511544,1731946247097,-500.0,0.00014246,2]
[342511545,1731946247109,-500.0,0.00014246,2]
[342511546,1731946247120,-500.0,0.00014246,2]
[342511547,1731946247132,-500.0,0.00014246,2]
[342511548,1731946247144,-500.0,0.00014246,2]
[342511549,1731946247156,-500.0,0.00014246,2]
[342511550,1731946247167,-500.0,0.00014246,2]
[342511551,1731946247180,-500.0,0.00014246,2]
[342511552,1731946247191,-500.0,0.00014246,2]
[342511553,1731946247203,-500.0,0.00014246,2]
[342511554,1731946247215,-500.0,0.00014246,2]
[342511555,1731946247225,-500.0,0.00014246,2]
[342511556,1731946247237,-500.0,0.00014246,2]
[342511557,1731946247249,-500.0,0.00014246,2]
[342511558,1731946247260,-517.79,0.00014246,2]
[342511559,1731946247272,-500.0,0.00014246,2]
[342511560,1731946247285,-500.0,0.00014246,2]
[342511561,1731946247297,-500.0,0.00014246,2]
[342511562,1731946247308,-500.0,0.00014246,2]
[342511563,1731946247320,-500.0,0.00014246,2]
[342511564,1731946247332,-500.0,0.00014246,2]
[342511565,1731946247343,-500.0,0.00014246,2]
[342511566,1731946247354,-500.0,0.00014246,2]
[342511567,1731946247364,-500.0,0.00014246,2]
[342511568,1731946247375,-500.0,0.00014246,2]
[342511569,1731946247387,-500.0,0.00014246,2]
[342511570,1731946247399,-500.0,0.00014246,2]
[342511571,1731946247409,-500.0,0.00014246,2]
[342511572,1731946247421,-500.0,0.00014246,2]
[342511573,1731946247433,-500.0,0.00014246,2]
[342511574,1731946247444,-500.0,0.00014246,2]
[342511575,1731946247456,-500.0,0.00014246,2]
[342511576,1731946247469,-500.0,0.00014246,2]
[342511577,1731946247481,-500.0,0.00014246,2]
[342511578,1731946247492,-500.0,0.00014246,2]
[342511579,1731946247504,-500.0,0.00014246,2]
[342511580,1731946247515,-500.0,0.00014246,2]
[342511581,1731946247528,-1410.07,0.00014246,2]
[342511582,1731946247540,-500.0,0.00014246,2]
[342511583,1731946247551,-500.0,0.00014246,2]
[342511584,1731946247564,-500.0,0.00014246,2]
[342511585,1731946247576,-500.0,0.00014246,2]
[342511586,1731946247587,-500.0,0.00014246,2]
[342511587,1731946247598,-500.0,0.00014246,2]
[342511588,1731946247607,-2544.66,0.00014246,2]
[342511589,1731946247617,-500.0,0.00014246,2]
[342511590,1731946247627,-500.0,0.00014246,2]
[342511591,1731946247638,-500.0,0.00014246,2]
[342511592,1731946247649,-500.0,0.00014246,2]
[342511593,1731946247660,-500.0,0.00014246,2]
[342511594,1731946247673,-500.0,0.00014246,2]
[342511595,1731946247688,-637.43,0.00014246,2]
[342511596,1731946247700,-500.0,0.00014246,2]
[342511597,1731946247713,-500.0,0.00014246,2]
[342511598,1731946247724,-500.0,0.00014246,2]
[342511599,1731946247735,-543.87,0.00014246,2]
[342511600,1731946247747,-796.68,0.00014246,2]
[342511601,1731946247758,-1156.73,0.00014246,2]
[342511602,1731946247770,-500.0,0.00014246,2]
[342511603,1731946247782,-500.0,0.00014246,2]
[342511604,1731946247792,-500.0,0.00014246,2]
[342511605,1731946247807,-500.0,0.00014246,2]
[342511606,1731946247818,-500.0,0.00014246,2]
[342511607,1731946247828,-424.38,0.00014246,2]
[342511608,1731946247841,-500.0,0.00014246,2]
[342511609,1731946247851,-500.0,0.00014246,2]
[342511610,1731946247862,-500.0,0.00014246,2]
[342511611,1731946247873,-1000.0,0.00014246,2]
[342511612,1731946247884,-500.0,0.00014246,2]
[342511613,1731946247895,-500.0,0.00014246,2]
[342511614,1731946247906,-705.05,0.00014246,2]
[342511615,1731946247917,-6069.46,0.00014246,2]
[342511616,1731946247928,-500.0,0.00014246,2]
[342511617,1731946247943,-1297.7,0.00014246,2]
[342511618,1731946247954,-181.26,0.00014246,2]
[342511619,1731946247966,-467.24906579,0.00014246,2]
[342511620,1731946247976,-500.0,0.00014246,2]
[342511621,1731946247987,-500.0,0.00014246,2]
[342511622,1731946247997,-3553.13,0.00014246,2]
[342511623,1731946248008,-500.0,0.00014246,2]
[342511624,1731946248020,-915.09,0.00014246,2]
[342511625,1731946248030,-500.0,0.00014246,2]
[342511626,1731946248043,-348.08240968,0.00014246,2]
[342511627,1731946248054,-682.63,0.00014246,2]
[342511628,1731946248064,-500.0,0.00014246,2]
[342511629,1731946248075,-500.0,0.00014246,2]
[342511630,1731946248088,-500.0,0.00014246,2]
[342511631,1731946248100,-500.0,0.00014246,2]
[342511632,1731946248112,-600.58,0.00014246,2]
[342511633,1731946248124,-241.94,0.00014246,2]
[342511634,1731946248136,-509.02339917,0.00014273,2]
[342511635,1731946248151,-500.0,0.00014273,2]
[342511636,1731946248163,-500.0,0.00014273,2]
[342511637,1731946248175,-501.95276067,0.00014273,2]
[342511638,1731946248187,-500.0,0.00014273,2]
[342511639,1731946248198,-500.0,0.00014273,2]
[342511640,1731946248209,-500.0,0.00014273,2]
[342511641,1731946248220,-500.0,0.0001452,2]
[342511642,1731946248231,-500.0,0.0001452,2]
[342511643,1731946248244,-500.0,0.0001452,2]
[342511644,1731946248256,-500.0,0.0001452,2]
[342511645,1731946248268,-500.0,0.0001452,2]
[342511646,1731946248280,-581.19097401,0.0001452,2]
[342511647,1731946248291,-500.0,0.0001452,2]
[342511648,1731946248303,-219.45,0.0001452,2]
[342511649,1731946248314,-500.0,0.0001452,2]
[342511650,1731946248326,-500.0,0.0001452,2]
[342511651,1731946248339,-500.0,0.0001452,2]
[342511652,1731946248352,-500.0,0.0001452,2]
[342511653,1731946248364,-645.87,0.0001452,2]
[342511654,1731946248376,-500.0,0.0001452,2]
[342511655,1731946248387,-500.0,0.0001452,2]
[342511656,1731946248399,-651.73,0.0001452,2]
[342511657,1731946248410,-500.0,0.0001452,2]
[342511658,1731946248421,-500.0,0.0001452,2]
[342511659,1731946248433,-500.0,0.0001452,2]
[342511660,1731946248445,-500.0,0.0001452,2]
[342511661,1731946248456,-500.0,0.0001452,2]
[342511662,1731946248468,-500.0,0.0001452,2]
[342511663,1731946248480,-500.0,0.0001452,2]
[342511664,1731946248491,-500.0,0.0001452,2]
[342511665,1731946248503,-500.0,0.0001452,2]
[342511666,1731946248515,-500.0,0.0001452,2]
[342511667,1731946248527,-500.0,0.0001452,2]
[342511668,1731946248538,-500.0,0.0001452,2]
[342511669,1731946248549,-295.80234795,0.0001452,2]
[342511670,1731946248561,-500.0,0.0001452,2]
[342511671,1731946248573,-500.0,0.0001452,2]
[342511672,1731946248584,-500.0,0.0001452,2]
[342511673,1731946248598,-500.0,0.0001452,2]
[342511674,1731946248610,-500.0,0.0001452,2]
[342511675,1731946248621,-500.0,0.0001452,2]
[342511676,1731946248633,-500.0,0.0001452,2]
[342511677,1731946248645,-500.0,0.0001452,2]
[342511678,1731946248656,-500.0,0.0001452,2]
[342511679,1731946248667,-500.0,0.0001452,2]
[342511680,1731946248678,-500.0,0.0001452,2]
[342511681,1731946248691,-500.0,0.0001452,2]
[342511682,1731946248703,-500.0,0.0001452,2]
[342511683,1731946248714,-500.0,0.0001452,2]
[342511684,1731946248724,-500.0,0.0001452,2]
[342511685,1731946248737,-500.0,0.0001452,2]
[342511686,1731946248748,-500.0,0.0001452,2]
[342511687,1731946248759,-500.0,0.0001452,2]
[342511688,1731946248772,-500.0,0.0001452,2]
[342511689,1731946248783,-500.0,0.0001452,2]
[342511690,1731946248795,-500.0,0.0001452,2]
[342511691,1731946248806,-500.0,0.0001452,2]
[342511692,1731946248817,-500.0,0.0001452,2]
[342511693,1731946248828,-500.0,0.0001452,2]
[342511694,1731946248844,-500.0,0.0001452,2]
[342511695,1731946249097,-500.0,0.0001452,2]
[342511696,1731946249107,-500.0,0.0001452,2]
[342511697,1731946249118,-500.0,0.0001452,2]
[342511698,1731946249128,-500.0,0.0001452,2]
[342511699,1731946249139,-500.0,0.0001452,2]
[342511700,1731946249149,-160.06,0.0001452,2]
[342511701,1731946249159,-500.0,0.0001452,2]
[342511702,1731946249169,-500.0,0.0001452,2]
[342511703,1731946249179,-500.0,0.0001452,2]
[342511704,1731946249189,-503.41,0.0001452,2]
[342511705,1731946249198,-556.90215046,0.0001452,2]
[342511706,1731946249208,-500.0,0.0001452,2]
[342511707,1731946249218,-1410.07,0.0001452,2]
[342511708,1731946249228,-500.0,0.0001452,2]
[342511709,1731946249237,-500.0,0.0001452,2]
[342511710,1731946249247,-500.0,0.0001452,2]
[342511711,1731946249257,-500.0,0.0001452,2]
[342511712,1731946249267,-500.0,0.0001452,2]
[342511713,1731946249277,-2544.66,0.0001452,2]
[342511714,1731946249287,-500.0,0.0001452,2]
[342511715,1731946249296,-500.0,0.0001452,2]
[342511716,1731946249306,-500.0,0.0001452,2]
[342511717,1731946249315,-500.0,0.0001452,2]
[342511718,1731946249326,-500.0,0.0001452,2]
[342511719,1731946249338,-500.0,0.0001452,2]
[342511720,1731946249348,-637.43,0.0001452,2]
[342511721,1731946249358,-500.0,0.0001452,2]
[342511722,1731946249367,-500.0,0.0001452,2]
[342511723,1731946249378,-500.0,0.0001452,2]
[342511724,1731946249388,-543.87,0.0001452,2]
[342511725,1731946249398,-796.68,0.0001452,2]
[342511726,1731946249408,-1156.73,0.0001452,2]
[342511727,1731946249418,-500.0,0.0001452,2]
[342511728,1731946249427,-500.0,0.0001452,2]
[342511729,1731946249438,-500.0,0.0001452,2]
[342511730,1731946249448,-500.0,0.0001452,2]
[342511731,1731946249458,-500.0,0.0001452,2]
[342511732,1731946249468,-500.0,0.0001452,2]
[342511733,1731946249478,-601.02,0.0001452,2]
[342511734,1731946249489,-500.0,0.0001452,2]
[342511735,1731946249499,-500.0,0.0001452,2]
[342511736,1731946249509,-500.0,0.0001452,2]
[342511737,1731946249519,-705.05,0.0001452,2]
[342511738,1731946249528,-6069.46,0.0001452,2]
[342511739,1731946249538,-500.0,0.0001452,2]
[342511740,1731946249547,-1297.7,0.0001452,2]
[342511741,1731946249557,-500.0,0.0001452,2]
[342511742,1731946249567,-500.0,0.0001452,2]
[342511743,1731946249578,-3553.13,0.0001452,2]
[342511744,1731946249592,-500.0,0.0001452,2]
[342511745,1731946249601,-915.09,0.0001452,2]
[342511746,1731946249611,-251.64,0.0001452,2]
[342511747,1731946249621,-682.63,0.0001452,2]
[342511748,1731946249632,-500.0,0.0001452,2]
[342511749,1731946249642,-500.0,0.0001452,2]
[342511750,1731946249653,-500.0,0.0001452,2]
[342511751,1731946249664,-422.54232888,0.00014612,2]
[342511752,1731946249675,-339.47,0.00014794,2]
[342511753,1731946249688,-500.0,0.00014794,2]
[342511754,1731946249698,-341.5583678,0.00014794,2]
[342511755,1731946249708,-500.0,0.00014794,2]
[342511756,1731946249718,-500.0,0.00014794,2]
[342511757,1731946249730,-223.34,0.00014794,2]
[342511758,1731946249740,-500.0,0.00014794,2]
[342511759,1731946249749,-606.59683594,0.00014794,2]
[342511760,1731946249761,-651.73,0.00014794,2]
[342511761,1731946249771,-500.0,0.00014794,2]
[342511762,1731946249782,-500.0,0.00014794,2]
[342511763,1731946249791,-500.0,0.00014794,2]
[342511764,1731946249801,-500.0,0.00014794,2]
[342511765,1731946249810,-294.49276376,0.00014794,2]
[342511766,1731946249820,-500.0,0.00014794,2]
[342511767,1731946249830,-500.0,0.00014794,2]
[342511768,1731946249843,-643.12,0.00014794,2]
[342511769,1731946249855,-353.31710502,0.00014794,2]
[342511770,1731946249865,-500.0,0.00014794,2]
[342511771,1731946249875,-500.0,0.00014794,2]
[342511772,1731946249885,-500.0,0.00014794,2]
[342511773,1731946249895,-500.0,0.00014794,2]
[342511774,1731946249906,-500.0,0.00014794,2]
[342511775,1731946249915,-500.0,0.00014794,2]
[342511776,1731946249926,-500.0,0.00014794,2]
[342511777,1731946249936,-500.0,0.00014794,2]
[342511778,1731946249946,-500.0,0.00014794,2]
[342511779,1731946249955,-469.55697262,0.00014794,2]
[342511780,1731946249965,-542.13212734,0.00014794,2]
[342511781,1731946249974,-500.0,0.00014794,2]
[342511782,1731946249984,-500.0,0.00014794,2]
[342511783,1731946249993,-500.0,0.00014794,2]
[342511784,1731946250003,-500.0,0.00014794,2]
[342511785,1731946250012,-500.0,0.00014794,2]
[342511786,1731946250021,-289.91943995,0.00014794,2]
[342511787,1731946250031,-500.0,0.00014794,2]
[342511788,1731946250040,-500.0,0.00014794,2]
[342511789,1731946250050,-500.0,0.00014794,2]
[342511790,1731946250061,-234.9,0.00014794,2]
[342511791,1731946250071,-500.0,0.00014794,2]
[342511792,1731946250080,-500.0,0.00014794,2]
[342511793,1731946250093,-500.0,0.00014794,2]
[342511794,1731946250103,-500.0,0.00014794,2]
[342511795,1731946250113,-500.0,0.00014794,2]
[342511796,1731946250124,-436.79127988,0.00014794,2]
[342511797,1731946250134,-500.0,0.00014794,2]
[342511798,1731946250143,-500.0,0.00014794,2]
[342511799,1731946250153,-500.0,0.00014794,2]
[342511800,1731946250162,-500.0,0.00014794,2]
[342511801,1731946250172,-500.0,0.00014794,2]
[342511802,1731946250183,-1410.07,0.00014794,2]
[342511803,1731946250193,-500.0,0.00014794,2]
[342511804,1731946250206,-500.0,0.00014794,2]
[342511805,1731946250218,-500.0,0.00014794,2]
[342511806,1731946250235,-500.0,0.00014794,2]
[342511807,1731946250247,-500.0,0.00014794,2]
[342511808,1731946250263,-2544.66,0.00014794,2]
[342511809,1731946250273,-500.0,0.00014794,2]
[342511810,1731946250284,-446.74,0.00014794,2]
[342511811,1731946250294,-500.0,0.00014794,2]
[342511812,1731946250304,-353.27740084,0.00014794,2]
[342511813,1731946250313,-500.0,0.00014794,2]
[342511814,1731946250323,-500.0,0.00014794,2]
[342511815,1731946250333,-637.43,0.00014794,2]
[342511816,1731946250348,-508.63,0.00014794,2]
[342511817,1731946250358,-543.87,0.00014794,2]
[342511818,1731946250367,-500.0,0.00014794,2]
[342511819,1731946250376,-796.68,0.00014794,2]
[342511820,1731946250387,-1156.73,0.00014794,2]
[342511821,1731946250397,-500.0,0.00014794,2]
[342511822,1731946250407,-500.0,0.00014794,2]
[342511823,1731946250418,-500.0,0.00014794,2]
[342511824,1731946250427,-500.0,0.00014794,2]
[342511825,1731946250437,-500.0,0.00014794,2]
[342511826,1731946250446,-500.0,0.00014794,2]
[342511827,1731946250456,-480.5455589,0.00014794,2]
[342511828,1731946250467,-500.0,0.00014794,2]
[342511829,1731946250476,-500.0,0.00014794,2]
[342511830,1731946250486,-705.05,0.00014794,2]
[342511831,1731946250496,-6069.46,0.00014794,2]
[342511832,1731946250505,-500.0,0.00014794,2]
[342511833,1731946250515,-1297.7,0.00014794,2]
[342511834,1731946250527,-500.0,0.00014794,2]
[342511835,1731946250537,-500.0,0.00014794,2]
[342511836,1731946250547,-3553.13,0.00014794,2]
[342511837,1731946250556,-500.0,0.00014794,2]
[342511838,1731946250566,-915.09,0.00014794,2]
[342511839,1731946250576,-682.63,0.00014794,2]
[342511840,1731946250589,-185.02,0.00014794,2]
[342511841,1731946250599,-500.0,0.00014794,2]
[342511842,1731946250609,-500.0,0.00014794,2]
[342511843,1731946250619,-530.0,0.00014912,2]
[342511844,1731946250629,-1110.0,0.00014912,2]
[342511845,1731946250638,-2385.0,0.00014912,2]
[342511846,1731946250648,-420.0,0.0001501,2]
[342511847,1731946250658,-420.0,0.00015067,2]
[342511848,1731946250667,-309.911,0.00015068,2]
[342511849,1731946250677,-193.29300616,0.00015068,2]
[342511850,1731946250689,-500.0,0.00015068,2]
[342511851,1731946250698,-208.65566394,0.00015068,2]
[342511852,1731946250708,-500.0,0.00015068,2]
[342511853,1731946250717,-651.73,0.00015068,2]
[342511854,1731946250727,-215.17375775,0.00015068,2]
[342511855,1731946250737,-480.44,0.00015068,2]
[342511856,1731946250747,-253.03645694,0.00015068,2]
[342511857,1731946250758,-500.0,0.00015068,2]
[342511858,1731946250768,-159.39730592,0.00015068,2]
[342511859,1731946250778,-500.0,0.00015068,2]
[342511860,1731946250788,-352.12,0.00015068,2]
[342511861,1731946250797,-500.0,0.00015068,2]
[342511862,1731946250807,-500.0,0.00015068,2]
[342511863,1731946250816,-559.88,0.00015068,2]
[342511864,1731946250826,-500.0,0.00015068,2]
[342511865,1731946250837,-500.0,0.00015068,2]
[342511866,1731946250847,-500.0,0.00015068,2]
[342511867,1731946250857,-500.0,0.00015068,2]
[342511868,1731946250866,-500.0,0.00015068,2]
[342511869,1731946250876,-296.09,0.00015068,2]
[342511870,1731946250885,-500.0,0.00015068,2]
[342511871,1731946250894,-500.0,0.00015068,2]
[342511872,1731946250904,-500.0,0.00015068,2]
[342511873,1731946250914,-500.0,0.00015068,2]
[342511874,1731946250924,-562.26994657,0.00015068,2]
[342511875,1731946250934,-500.0,0.00015068,2]
[342511876,1731946250943,-500.0,0.00015068,2]
[342511877,1731946250953,-500.0,0.00015068,2]
[342511878,1731946250963,-500.0,0.00015068,2]
[342511879,1731946250973,-500.0,0.00015068,2]
[342511880,1731946250983,-500.0,0.00015068,2]
[342511881,1731946250992,-500.0,0.00015068,2]
[342511882,1731946251002,-1410.07,0.00015068,2]
[342511883,1731946251013,-500.0,0.00015068,2]
[342511884,1731946251023,-500.0,0.00015068,2]
[342511885,1731946251033,-500.0,0.00015068,2]
[342511886,1731946251043,-500.0,0.00015068,2]
[342511887,1731946251054,-2544.66,0.00015068,2]
[342511888,1731946251065,-500.0,0.00015068,2]
[342511889,1731946251075,-500.0,0.00015068,2]
[342511890,1731946251084,-500.0,0.00015068,2]
[342511891,1731946251096,-500.0,0.00015068,2]
[342511892,1731946251105,-637.43,0.00015068,2]
[342511893,1731946251115,-543.87,0.00015068,2]
[342511894,1731946251124,-500.0,0.00015068,2]
[342511895,1731946251134,-796.68,0.00015068,2]
[342511896,1731946251143,-1156.73,0.00015068,2]
[342511897,1731946251153,-500.0,0.00015068,2]
[342511898,1731946251163,-500.0,0.00015068,2]
[342511899,1731946251173,-602.228217,0.00015068,2]
[342511900,1731946251183,-500.0,0.00015068,2]
[342511901,1731946251193,-500.0,0.00015068,2]
[342511902,1731946251202,-267.68,0.00015068,2]
[342511903,1731946251213,-500.0,0.00015068,2]
[342511904,1731946251223,-500.0,0.00015068,2]
[342511905,1731946251233,-705.05,0.00015068,2]
[342511906,1731946251243,-6069.46,0.00015068,2]
[342511907,1731946251253,-500.0,0.00015068,2]
[342511908,1731946251262,-1297.7,0.00015068,2]
[342511909,1731946251272,-500.0,0.00015068,2]
[342511910,1731946251282,-263.07278679,0.00015068,2]
[342511911,1731946251292,-3553.13,0.00015068,2]
[342511912,1731946251302,-500.0,0.00015068,2]
[342511913,1731946251312,-915.09,0.00015068,2]
[342511914,1731946251322,-682.63,0.00015068,2]
[342511915,1731946251332,-500.0,0.00015068,2]
[342511916,1731946251345,-500.0,0.00015068,2]
[342511917,1731946251354,-500.0,0.00015342,2]
[342511918,1731946251364,-206.46,0.00015342,2]
[342511919,1731946251374,-651.73,0.00015342,2]
[342511920,1731946251384,-500.0,0.00015342,2]
[342511921,1731946251393,-500.0,0.00015342,2]
[342511922,1731946251403,-500.0,0.00015342,2]
[342511923,1731946251412,-500.0,0.00015342,2]
[342511924,1731946251422,-327.12,0.00015342,2]
[342511925,1731946251434,-548.18,0.00015342,2]
[342511926,1731946251444,-500.0,0.00015342,2]
[342511927,1731946251453,-500.0,0.00015342,2]
[342511928,1731946251463,-500.0,0.00015342,2]
[342511929,1731946251473,-500.0,0.00015342,2]
[342511930,1731946251482,-500.0,0.00015342,2]
[342511931,1731946251493,-562.97,0.00015342,2]
[342511932,1731946251502,-500.0,0.00015342,2]
[342511933,1731946251512,-392.27,0.00015342,2]
[342511934,1731946251521,-500.0,0.00015342,2]
[342511935,1731946251531,-1410.07,0.00015342,2]
[342511936,1731946251545,-500.0,0.00015342,2]
[342511937,1731946251556,-500.0,0.00015342,2]
[342511938,1731946251568,-500.0,0.00015342,2]
[342511939,1731946251577,-500.0,0.00015342,2]
[342511940,1731946251588,-2544.66,0.00015342,2]
[342511941,1731946251599,-500.0,0.00015342,2]
[342511942,1731946251609,-240.93664191,0.00015342,2]
[342511943,1731946251620,-500.0,0.00015342,2]
[342511944,1731946251630,-500.0,0.00015342,2]
[342511945,1731946251640,-637.43,0.00015342,2]
[342511946,1731946251650,-543.87,0.00015342,2]
[342511947,1731946251661,-233.1,0.00015342,2]
[342511948,1731946251671,-796.68,0.00015342,2]
[342511949,1731946251681,-1156.73,0.00015342,2]
[342511950,1731946251695,-500.0,0.00015342,2]
[342511951,1731946251704,-500.0,0.00015342,2]
[342511952,1731946251714,-500.0,0.00015342,2]
[342511953,1731946251724,-340.0,0.00015342,2]
[342511954,1731946251736,-197.4358538,0.00015342,2]
[342511955,1731946251746,-500.0,0.00015342,2]
[342511956,1731946251756,-705.05,0.00015342,2]
[342511957,1731946251767,-6069.46,0.00015342,2]
[342511958,1731946251777,-486.3889037,0.00015342,2]
[342511959,1731946251787,-1297.7,0.00015342,2]
[342511960,1731946251797,-500.0,0.00015342,2]
[342511961,1731946251806,-3553.13,0.00015342,2]
[342511962,1731946251817,-500.0,0.00015342,2]
[342511963,1731946251827,-915.09,0.00015342,2]
[342511964,1731946251839,-682.63,0.00015342,2]
[342511965,1731946251849,-500.0,0.00015342,2]
[342511966,1731946251859,-500.0,0.00015342,2]
[342511967,1731946251869,-500.34133077,0.00015342,2]
[342511968,1731946251878,-437.45944043,0.00015616,2]
[342511969,1731946251888,-651.73,0.00015616,2]
[342511970,1731946251898,-500.0,0.00015616,2]
[342511971,1731946251909,-500.0,0.00015616,2]
[342511972,1731946251919,-500.0,0.00015616,2]
[342511973,1731946251929,-200.71301075,0.00015616,2]
[342511974,1731946251938,-500.0,0.00015616,2]
[342511975,1731946251949,-500.0,0.00015616,2]
[342511976,1731946251960,-500.0,0.00015616,2]
[342511977,1731946251969,-500.0,0.00015616,2]
[342511978,1731946251979,-500.0,0.00015616,2]
[342511979,1731946251989,-500.0,0.00015616,2]
[342511980,1731946251999,-1410.07,0.00015616,2]
[342511981,1731946252009,-500.0,0.00015616,2]
[342511982,1731946252019,-500.0,0.00015616,2]
[342511983,1731946252029,-500.0,0.00015616,2]
[342511984,1731946252039,-500.0,0.00015616,2]
[342511985,1731946252049,-2544.66,0.00015616,2]
[342511986,1731946252060,-233.80337903,0.00015616,2]